bitfinex/quotes_SOLUSD_20250107
["timestamp","ask_amount","ask_price","bid_price","bid_amount"]
[1736277854403,20.0,204.82,204.69,14.30720751]
[1736277854609,20.0,204.82,204.71,0.12549]
[1736277855524,20.0,204.82,204.72,23.776884]
[1736277856123,20.0,204.82,204.71,0.12549]
[1736277856433,20.0,204.82,204.72,14.30720751]
[1736277856632,20.0,204.82,204.7,23.776884]
[1736277856814,20.0,204.82,204.71,0.12549]
[1736277857507,20.0,204.82,204.7,23.902374]
[1736277857835,20.0,204.82,204.7,38.20958151]
[1736277858335,20.0,204.82,204.72,23.902374]
[1736277858633,22.42,204.82,204.74,14.43269751]
[1736277859000,2.42,204.82,204.74,14.43269751]
[1736277859325,0.85626584,204.83,204.76,0.12549]
[1736277859531,0.85626584,204.83,204.76,14.43269751]
[1736277859735,0.85626584,204.83,204.78,0.12549]
[1736277860039,20.85626584,204.83,204.78,0.12549]
[1736277860331,0.85626584,204.83,204.76,0.12549]
[1736277860493,20.85626584,204.83,204.78,0.12549]
[1736277861124,20.85626584,204.83,204.76,0.12549]
[1736277861325,20.85626584,204.83,204.78,0.12549]
[1736277863527,20.85626584,204.83,204.77,23.776884]
[1736277863528,20.85626584,204.83,204.76,0.12549]
[1736277864231,20.85626584,204.83,204.75,23.902374]
[1736277864429,0.85626584,204.83,204.77,14.43269751]
[1736277864809,0.85626584,204.83,204.77,0.12549]
[1736277865008,0.85626584,204.83,204.77,23.902374]
[1736277865525,0.85626584,204.83,204.75,14.30720751]
[1736277865730,0.85626584,204.83,204.74,14.30720751]
[1736277866231,0.85626584,204.83,204.75,23.902374]
[1736277866751,0.85626584,204.83,204.75,14.43269751]
[1736277867346,0.85626584,204.83,204.75,9.16520578]
[1736277867553,0.85626584,204.83,204.75,23.776884]
[1736277867726,20.85626584,204.83,204.7,7.947]
[1736277867926,20.85626584,204.83,204.68,9.16520578]
[1736277868246,20.85626584,204.83,204.67,9.16520578]
[1736277868849,20.85626584,204.83,204.68,23.902374]
[1736277869146,20.85626584,204.83,204.65,10.77980578]
[1736277869357,6.5621,204.82,204.65,14.33561443]
[1736277869529,6.5621,204.82,204.67,23.902374]
[1736277870953,0.12549,204.78,204.62,14.33561443]
[1736277871154,0.12549,204.76,204.62,14.33561443]
[1736277871448,0.12549,204.76,204.64,23.902374]
[1736277871651,0.12549,204.76,204.64,0.12549]
[1736277871839,0.12549,204.71,204.61,14.33561443]
[1736277872239,0.12549,204.71,204.62,14.33561443]
[1736277872573,0.12549,204.71,204.64,0.12549]
[1736277872856,0.12549,204.71,204.63,14.33561443]
[1736277873151,1.74599,204.71,204.63,14.33561443]
[1736277873362,1.74599,204.71,204.61,14.33561443]
[1736277874024,1.74599,204.71,204.62,0.12549]
[1736277875031,1.74599,204.71,204.59,14.33561443]
[1736277875352,0.12549,204.69,204.58,14.33561443]
[1736277875533,0.12549,204.69,204.59,23.902374]
[1736277875833,0.12549,204.69,204.59,23.776884]
[1736277876463,0.12549,204.69,204.6,0.12549]
[1736277876966,0.12549,204.69,204.62,0.12549]
[1736277877455,1.6205,204.71,204.68,0.12549]
[1736277877752,1.6205,204.71,204.62,14.33561443]
[1736277878059,0.12549,204.7,204.65,23.776884]
[1736277878431,0.12549,204.7,204.66,23.776884]
[1736277878634,6.5973,204.75,204.68,23.776884]
[1736277878852,0.12549,204.74,204.68,23.776884]
[1736277879439,0.12549,204.74,204.66,14.33561443]
[1736277879757,0.12549,204.74,204.65,14.33561443]
[1736277879958,0.12549,204.71,204.6,2.42]
[1736277880269,0.12549,204.71,204.63,14.33561443]
[1736277880428,6.5973,204.75,204.7,0.12549]
[1736277880631,0.12549,204.74,204.68,14.33561443]
[1736277880853,0.12549,204.74,204.7,23.902374]
[1736277881427,0.12549,204.76,204.7,23.902374]
[1736277882852,0.12549,204.76,204.7,14.46110443]
[1736277883329,0.12549,204.76,204.72,23.902374]
[1736277884065,0.12549,204.76,204.72,0.12549]
[1736277884232,0.12549,204.76,204.71,23.902374]
[1736277884432,6.0269,204.8,204.73,0.12549]
[1736277884661,0.12549,204.79,204.72,0.12549]
[1736277884857,0.12549,204.79,204.71,14.33561443]
[1736277885664,0.12549,204.79,204.7,14.33561443]
[1736277886232,0.12549,204.79,204.71,23.902374]
[1736277886660,0.12549,204.79,204.69,0.12549]
[1736277887232,0.12549,204.79,204.67,23.902374]
[1736277887434,0.12549,204.79,204.67,14.46110443]
[1736277887656,0.12549,204.79,204.69,23.776884]
[1736277887969,0.12549,204.79,204.7,0.12549]
[1736277888760,0.12549,204.79,204.71,23.902374]
[1736277889130,0.12549,204.79,204.71,0.12549]
[1736277889351,0.12549,204.79,204.71,14.33561443]
[1736277889658,0.12549,204.79,204.72,14.33561443]
[1736277889858,0.12549,204.79,204.73,23.902374]
[1736277890041,0.12549,204.79,204.73,0.12549]
[1736277890558,0.12549,204.79,204.72,0.12549]
[1736277891938,0.12549,204.79,204.7,23.776884]
[1736277893867,0.12549,204.79,204.72,23.902374]
[1736277894043,0.12549,204.79,204.72,14.46110443]
[1736277895764,0.12549,204.79,204.74,23.902374]
[1736277895945,20.0,204.81,204.74,14.46110443]
[1736277896270,0.12549,204.8,204.74,0.12549]
[1736277896438,0.12549,204.8,204.69,20.0]
[1736277896640,0.12549,204.8,204.7,14.33561443]
[1736277896952,0.12549,204.81,204.72,23.902374]
[1736277897135,0.12549,204.81,204.72,14.46110443]
[1736277898165,0.12549,204.81,204.74,23.902374]
[1736277898371,0.12549,204.81,204.74,38.23798843]
[1736277899157,0.12549,204.81,204.76,38.23798843]
[1736277899334,14.20868975,204.85,204.8,23.902374]
[1736277899535,1.635,204.86,204.71,8.15238521]
[1736277899536,1.635,204.86,204.82,0.12549]
[1736277899732,1.635,204.86,204.82,14.46110443]
[1736277900104,7.63018975,204.87,204.82,14.46110443]
[1736277900239,7.63018975,204.87,204.84,14.46110443]
[1736277900563,35.04750735,204.88,204.86,38.23798843]
[1736277900756,35.04750735,204.88,204.87,0.12549]
[1736277901064,0.12549,204.87,204.83,14.33561443]
[1736277901367,0.12549,204.87,204.83,23.902374]
[1736277901866,0.12549,204.87,204.83,14.46110443]
[1736277902069,35.04750735,204.88,204.85,14.33561443]
[1736277902967,35.04750735,204.88,204.86,0.12549]
[1736277903469,35.04750735,204.88,204.87,14.33561443]
[1736277903766,35.17299735,204.88,204.87,14.33561443]
[1736277904285,0.12549,204.88,204.87,14.33561443]
[1736277904660,0.12549,204.88,204.87,38.84430756]
[1736277906370,35.02748346,205.0,204.91,0.12549]
[1736277906584,0.12549,204.99,204.96,23.902374]
[1736277907105,1.5612,205.02,204.96,38.23798843]
[1736277907391,0.12549,205.01,204.96,38.23798843]
[1736277907687,0.12549,205.01,204.98,23.902374]
[1736277908096,0.12549,205.01,204.97,14.46110443]
[1736277908303,35.01847098,205.08,205.0,23.902374]
[1736277908465,0.12549,205.07,205.0,23.902374]
[1736277908670,0.12549,205.07,205.0,0.12549]
[1736277909301,0.12549,205.07,205.0,14.46110443]
[1736277909474,13.77798481,205.13,205.05,23.902374]
[1736277909889,13.77798481,205.13,205.05,0.12549]
[1736277910101,6.1966,205.13,204.99,14.33561443]
[1736277910397,0.12549,205.09,204.98,38.23798843]
[1736277911676,0.12549,205.09,204.97,14.33561443]
[1736277912082,0.12549,205.07,204.98,23.776884]
[1736277912287,0.12549,205.07,204.95,14.33561443]
[1736277912479,2.54549,205.07,204.89,1.5081]
[1736277912679,0.12549,205.02,204.89,15.84371443]
[1736277912885,0.12549,205.02,204.89,14.33561443]
[1736277913081,0.12549,205.02,204.88,2.42]
[1736277913281,0.12549,205.02,204.91,23.902374]
[1736277913985,0.12549,205.02,204.91,38.23798843]
[1736277914180,0.12549,205.02,204.91,14.46110443]
[1736277915195,6.4583,205.06,204.97,14.33561443]
[1736277915502,6.4583,205.06,204.94,14.33561443]
[1736277915503,0.12549,205.05,204.94,14.33561443]
[1736277915883,0.12549,205.05,204.95,23.902374]
[1736277916080,0.12549,205.02,204.95,23.902374]
[1736277916282,0.12549,205.02,204.95,0.12549]
[1736277917900,0.12549,205.02,204.9,14.33561443]
[1736277918100,0.12549,205.02,204.87,6.6261]
[1736277918302,0.12549,204.98,204.86,14.33561443]
[1736277918488,0.12549,204.98,204.84,1.5081]
[1736277918489,0.12549,204.98,204.87,14.33561443]
[1736277918693,0.12549,204.98,204.88,14.33561443]
[1736277919300,0.12549,204.98,204.89,23.902374]
[1736277919476,0.12549,204.98,204.91,14.46110443]
[1736277920104,0.12549,204.98,204.93,23.902374]
[1736277920907,0.12549,204.98,204.9,14.33561443]
[1736277922391,0.12549,204.98,204.91,23.902374]
[1736277923304,20.0,205.03,204.95,38.23798843]
[1736277923505,20.0,205.03,204.95,14.46110443]
[1736277924217,0.12549,205.02,204.97,23.902374]
[1736277924379,0.12549,205.02,204.99,14.46110443]
[1736277924780,0.12549,205.05,204.99,23.902374]
[1736277925191,0.12549,205.05,204.93,6.5942]
[1736277925192,0.12549,205.05,204.97,14.33561443]
[1736277925903,0.12549,205.05,204.98,0.12549]
[1736277926980,0.12549,205.05,204.97,23.776884]
[1736277927404,0.12549,205.05,204.97,14.33561443]
[1736277927611,0.12549,205.05,204.99,23.776884]
[1736277928300,1.6062,205.09,204.99,23.776884]
[1736277928511,1.6062,205.09,205.03,23.902374]
[1736277929391,0.12549,205.08,205.0,14.33561443]
[1736277929793,0.12549,205.08,205.01,23.902374]
[1736277930214,0.12549,205.08,205.01,14.46110443]
[1736277930378,0.12549,205.08,205.03,23.776884]
[1736277932709,0.12549,205.08,205.02,0.12549]
[1736277933285,1.5991,205.14,205.03,23.776884]
[1736277933602,20.0,205.12,205.05,23.902374]
[1736277933799,0.12549,205.11,205.05,23.902374]
[1736277936885,0.12549,205.11,205.05,0.12549]
[1736277939609,1.5991,205.14,205.06,23.902374]
[1736277939797,0.12549,205.13,205.06,23.902374]
[1736277941394,0.12549,205.13,205.06,14.46110443]
[1736277941597,0.12549,205.13,205.02,14.33561443]
[1736277941926,0.12549,205.11,205.0,14.33561443]
[1736277942100,0.12549,205.11,204.99,14.33561443]
[1736277942497,0.12549,205.11,205.0,14.33561443]
[1736277942705,0.12549,205.11,205.01,23.902374]
[1736277943506,0.12549,205.11,205.03,0.12549]
[1736277944096,0.12549,205.11,205.05,0.12549]
[1736277945623,0.12549,205.11,205.03,0.12549]
[1736277946119,0.12549,205.11,205.05,0.12549]
[1736277946321,0.12549,205.11,205.07,0.12549]
[1736277946995,0.12549,205.11,205.05,23.902374]
[1736277947398,0.12549,205.11,205.05,14.46110443]
[1736277947695,0.12549,205.11,205.06,0.12549]
[1736277949507,0.12549,205.11,205.05,0.12549]
[1736277950217,0.12549,205.11,205.03,0.12549]
[1736277951118,0.12549,205.11,205.04,0.12549]
[1736277952223,0.12549,205.11,205.03,0.12549]
[1736277952698,0.12549,205.11,204.99,16.75561443]
[1736277953095,0.12549,205.11,204.99,14.33561443]
[1736277953317,0.12549,205.11,205.0,23.902374]
[1736277953498,6.71589,205.07,204.93,6.5942]
[1736277953702,0.12549,205.03,204.91,14.33561443]
[1736277954224,0.12549,205.03,204.9,15.93371443]
[1736277954395,0.12549,205.03,204.91,14.33561443]
[1736277955711,0.12549,205.03,204.9,15.93371443]
[1736277955913,2.54549,205.03,204.91,23.902374]
[1736277956112,0.12549,204.99,204.86,14.33561443]
[1736277956311,6.5904,204.98,204.85,15.93371443]
[1736277956621,0.12549,204.97,204.86,23.902374]
[1736277957302,0.12549,204.97,204.86,38.23798843]
[1736277957916,0.12549,204.94,204.83,14.33561443]
[1736277958319,0.12549,204.94,204.84,23.902374]
[1736277960315,0.12549,204.92,204.82,14.33561443]
[1736277961031,0.12549,204.92,204.81,38.23798843]
[1736277961228,0.12549,204.92,204.9,14.33561443]
[1736277961431,8.2302,204.98,204.9,0.12549]
[1736277961635,0.12549,204.97,204.9,0.12549]
[1736277962134,0.12549,204.94,204.88,23.902374]
[1736277962508,0.12549,204.94,204.88,0.12549]
[1736277962940,0.12549,204.94,204.83,14.33561443]
[1736277963139,0.12549,204.94,204.84,0.12549]
[1736277963730,0.12549,204.94,204.84,23.902374]
[1736277964838,0.12549,204.94,204.84,14.46110443]
[1736277966155,0.12549,204.94,204.88,0.12549]
[1736277966335,0.12549,204.94,204.88,23.902374]
[1736277966761,0.12549,204.94,204.87,23.902374]
[1736277967333,0.12549,204.94,204.86,0.12549]
[1736277968235,0.12549,204.94,204.88,0.12549]
[1736277968438,0.12549,204.94,204.88,23.902374]
[1736277970740,0.12549,204.94,204.88,14.46110443]
[1736277971040,8.2302,204.98,204.9,14.46110443]
[1736277971227,0.12549,204.94,204.87,23.776884]
[1736277971433,0.12549,204.94,204.79,0.73204128]
[1736277971749,0.12549,204.94,204.83,23.776884]
[1736277972053,20.12549,204.94,204.84,0.12549]
[1736277972221,20.12549,204.94,204.85,23.776884]
[1736277972421,0.12549,204.94,204.85,23.776884]
[1736277973141,0.12549,204.94,204.88,14.33561443]
[1736277973348,0.12549,204.94,204.89,23.776884]
[1736277973556,0.12549,204.94,204.87,14.33561443]
[1736277973729,0.12549,204.94,204.87,0.12549]
[1736277975760,0.12549,204.94,204.83,14.33561443]
[1736277975948,0.12549,204.94,204.82,14.33561443]
[1736277976151,0.12549,204.94,204.83,23.902374]
[1736277976532,0.12549,204.94,204.83,14.46110443]
[1736277978128,0.12549,204.94,204.85,23.902374]
[1736277978739,0.12549,204.94,204.85,14.46110443]
[1736277979356,0.12549,204.94,204.87,14.33561443]
[1736277979687,8.2302,204.98,204.89,38.23798843]
[1736277979869,0.12549,204.97,204.89,38.23798843]
[1736277980359,0.12549,204.94,204.89,38.23798843]
[1736277980555,0.12549,204.94,204.89,0.12549]
[1736277980765,0.12549,204.94,204.89,23.902374]
[1736277981875,1.6073,205.03,204.93,14.46110443]
[1736277982084,1.6073,205.03,204.95,0.12549]
[1736277982706,4.0273,205.03,204.87,8.0587]
[1736277982877,20.0,205.01,204.9,38.23798843]
[1736277983378,0.12549,205.0,204.92,23.902374]
[1736277986893,0.12549,205.0,204.92,38.23798843]
[1736277987100,1.6073,205.03,204.96,23.902374]
[1736277987394,0.12549,205.0,204.96,23.902374]
[1736277987569,0.12549,205.0,204.96,23.776884]
[1736277988077,0.12549,205.0,204.93,0.12549]
[1736277990217,0.12549,205.0,204.93,38.23798843]
[1736277992668,0.12549,205.0,204.95,23.902374]
[1736277993368,0.12549,205.0,204.95,38.23798843]
[1736277993571,1.6073,205.03,204.95,38.23798843]
[1736277993887,0.12549,205.02,204.95,38.23798843]
[1736277994087,0.12549,205.02,204.95,38.04654455]
[1736277994279,0.12549,205.02,204.89,12.2012]
[1736277994598,0.12549,205.02,204.9,14.33561443]
[1736277994777,0.12549,205.02,204.91,14.33561443]
[1736277995394,0.12549,205.0,204.92,15.19283149]
[1736277995581,0.12549,205.0,204.93,14.33561443]
[1736277996182,0.12549,205.02,204.95,23.776884]
[1736277996576,0.12549,205.02,204.95,38.11249843]
[1736277996782,0.12549,205.02,204.95,23.776884]
[1736277997695,0.12549,205.02,204.94,0.12549]
[1736278000206,2.4,205.07,204.94,0.12549]
[1736278000207,1.5757,205.08,204.97,14.46110443]
[1736278000375,1.5757,205.08,205.01,23.902374]
[1736278000574,1.5757,205.08,205.01,0.12549]
[1736278000902,0.12549,205.05,205.01,0.12549]
[1736278001377,1.5757,205.08,205.01,0.12549]
[1736278001589,0.12549,205.07,205.01,0.12549]
[1736278001786,0.12549,205.07,205.03,23.902374]
[1736278002215,20.0,205.11,205.03,0.12549]
[1736278002405,0.12549,205.1,205.0,14.33561443]
[1736278002591,0.12549,205.1,205.01,38.23798843]
[1736278002798,0.12549,205.12,205.01,38.23798843]
[1736278003197,0.12549,205.12,205.02,0.73135868]
[1736278003407,0.12549,205.12,205.03,23.902374]
[1736278003609,0.12549,205.1,205.03,23.902374]
[1736278003812,0.12549,205.1,205.05,23.902374]
[1736278004187,0.12549,205.12,205.05,23.902374]
[1736278004386,20.12549,205.12,205.05,38.23798843]
[1736278004598,0.12549,205.12,205.07,23.902374]
[1736278005631,20.0,205.15,205.07,38.23798843]
[1736278006119,0.12549,205.14,205.07,38.23798843]
[1736278006615,0.12549,205.14,205.07,23.902374]
[1736278006916,0.12549,205.14,205.06,0.12549]
[1736278007615,0.12549,205.14,205.07,23.902374]
[1736278009432,0.12549,205.14,205.07,38.23798843]
[1736278009638,0.12549,205.14,205.09,23.902374]
[1736278009927,0.12549,205.14,205.07,14.33561443]
[1736278010105,0.12549,205.14,205.06,14.33561443]
[1736278010314,0.12549,205.14,205.05,15.066737]
[1736278010626,0.12549,205.14,205.06,23.902374]
[1736278011033,0.12549,205.14,205.06,38.23798843]
[1736278011332,0.12549,205.14,205.08,23.902374]
[1736278011628,0.12549,205.14,205.08,0.12549]
[1736278011937,0.12549,205.14,205.03,22.38941443]
[1736278012929,0.12549,205.14,205.03,8.0538]
[1736278013231,0.12549,205.14,205.04,23.902374]
[1736278013397,0.12549,205.14,205.03,22.38941443]
[1736278013798,0.12549,205.14,205.04,23.776884]
[1736278014606,20.12549,205.17,205.04,23.776884]
[1736278015220,20.12549,205.17,205.02,14.33561443]
[1736278015416,20.12549,205.17,205.0,14.33561443]
[1736278015619,0.12549,205.12,204.99,2.4]
[1736278015814,0.12549,205.12,204.97,14.33561443]
[1736278016019,0.12549,205.12,204.95,2.4]
[1736278016020,0.12549,205.07,204.95,2.4]
[1736278016921,0.12549,205.07,204.96,23.902374]
[1736278017798,0.12549,205.05,204.89,16.73561443]
[1736278018028,0.12549,205.0,204.89,14.33561443]
[1736278018813,0.12549,205.0,204.9,23.902374]
[1736278019306,0.12549,205.0,204.89,14.33561443]
[1736278019839,0.12549,205.0,204.9,38.23798843]
[1736278021632,0.12549,205.0,204.94,0.12549]
[1736278021930,0.12549,205.03,204.96,0.12549]
[1736278023134,0.12549,205.03,204.98,0.12549]
[1736278024031,1.6151,205.06,204.98,0.12549]
[1736278024256,1.6151,205.06,204.99,14.46110443]
[1736278024410,0.12549,205.05,204.99,0.12549]
[1736278024611,0.12549,205.05,204.96,14.33561443]
[1736278025308,0.12549,205.05,204.97,0.12549]
[1736278026146,0.12549,205.05,204.96,14.46110443]
[1736278026443,0.12549,205.05,204.98,23.776884]
[1736278026735,0.12549,205.05,204.96,0.73158067]
[1736278026736,0.12549,205.05,205.01,0.12549]
[1736278027410,0.12549,205.05,204.98,14.33561443]
[1736278028227,0.12549,205.05,204.98,0.12549]
[1736278028731,0.12549,205.05,204.99,23.776884]
[1736278029625,6.4069,205.09,205.01,38.23798843]
[1736278029938,1.6045,205.11,205.03,38.23798843]
[1736278030120,0.12549,205.1,205.03,38.23798843]
[1736278030530,0.12549,205.1,205.05,23.902374]
[1736278030906,6.1833,205.15,205.05,38.23798843]
[1736278031111,1.6045,205.16,205.07,23.902374]
[1736278031311,1.6045,205.16,205.09,38.23798843]
[1736278031507,6.1833,205.19,205.11,0.12549]
[1736278031714,0.12549,205.15,205.11,0.12549]
[1736278032241,0.12549,205.15,205.07,14.33561443]
[1736278032413,0.12549,205.18,205.06,15.06675226]
[1736278032711,0.12549,205.18,205.07,23.902374]
[1736278032912,0.12549,205.15,205.07,0.12549]
[1736278033427,0.12549,204.98,204.96,1.96400448]
[1736278033730,0.12549,204.98,204.87,7.6130776]
[1736278033731,7.4,204.97,204.87,7.6130776]
[1736278033933,0.12549,204.89,204.76,14.33561443]
[1736278034152,0.85670328,204.89,204.74,16.73561443]
[1736278034311,0.85670328,204.89,204.76,14.33561443]
[1736278034742,0.85670328,204.89,204.76,16.73561443]
[1736278035033,0.85670328,204.89,204.79,0.12549]
[1736278035414,0.85670328,204.89,204.76,16.73561443]
[1736278035415,0.85670328,204.89,204.78,0.12549]
[1736278036123,0.12549,204.89,204.81,0.12549]
[1736278036432,0.12549,204.89,204.83,0.12549]
[1736278036639,20.0,204.92,204.83,0.12549]
[1736278036937,0.12549,204.91,204.83,0.12549]
[1736278037318,20.0,204.92,204.83,0.12549]
[1736278037537,0.12549,204.91,204.83,0.12549]
[1736278037835,0.12549,204.91,204.86,0.12549]
[1736278038045,6.89551328,205.01,204.87,0.12549]
[1736278038251,0.12549,204.97,204.87,0.12549]
[1736278038540,0.85670328,204.97,204.87,0.12549]
[1736278038741,0.12549,204.97,204.87,0.12549]
[1736278039925,0.85670328,204.97,204.86,46.68521629]
[1736278040153,0.12549,204.97,204.86,23.776884]
[1736278040651,0.12549,204.97,204.89,0.12549]
[1736278041549,0.12549,204.97,204.86,46.68521629]
[1736278041749,0.12549,204.97,204.89,0.12549]
[1736278042653,0.12549,204.97,204.86,23.776884]
[1736278043226,0.12549,204.97,204.89,0.12549]
[1736278047653,0.12549,204.97,204.87,23.776884]
[1736278048444,0.12549,204.97,204.91,0.12549]
[1736278048959,6.1643,205.01,204.91,0.12549]
[1736278049161,0.12549,205.0,204.91,0.12549]
[1736278049362,0.12549,205.0,204.93,0.12549]
[1736278050162,0.12549,205.0,204.91,0.12549]
[1736278050852,0.12549,205.0,204.93,23.902374]
[1736278051059,0.12549,205.0,204.93,0.12549]
[1736278051444,0.12549,205.0,204.92,0.12549]
[1736278052160,0.12549,205.01,204.93,23.902374]
[1736278053637,0.12549,205.01,204.95,23.902374]
[1736278055052,0.12549,205.01,204.92,23.902374]
[1736278055637,0.12549,205.01,204.88,14.29911374]
[1736278055838,0.12549,205.01,204.89,2.4]
[1736278056037,0.12549,205.01,204.9,23.902374]
[1736278056537,0.12549,205.01,204.9,38.20148774]
[1736278057737,0.12549,205.01,204.94,23.902374]
[1736278058961,0.12549,205.01,204.94,0.12549]
[1736278059168,0.12549,205.01,204.92,23.776884]
[1736278059349,0.12549,205.01,204.92,38.07599774]
[1736278059538,0.12549,205.01,204.94,23.902374]
[1736278060450,0.12549,205.01,204.96,23.902374]
[1736278060646,0.12549,205.01,204.98,23.902374]
[1736278061052,3.69853673,205.02,204.98,23.902374]
[1736278061743,3.69853673,205.02,204.98,38.20148774]
[1736278062380,3.69853673,205.02,204.98,23.902374]
[1736278063666,3.69853673,205.02,204.98,38.20148774]
[1736278064337,3.69853673,205.02,204.98,23.902374]
[1736278064557,3.69853673,205.02,205.0,38.20148774]
[1736278064762,1.5784,205.1,205.0,38.20148774]
[1736278065047,0.12549,205.09,205.0,23.902374]
[1736278065245,0.12549,205.09,204.99,0.12549]
[1736278065459,0.12549,205.09,205.01,0.12549]
[1736278066367,0.12549,205.09,205.01,23.902374]
[1736278066543,0.12549,205.09,205.0,23.902374]
[1736278067371,0.12549,205.09,205.0,38.20148774]
[1736278067551,0.12549,205.09,205.0,38.9328616]
[1736278067757,6.1429,205.12,205.02,14.42460374]
[1736278067966,6.1429,205.12,205.04,0.12549]
[1736278068272,0.12549,205.11,205.04,0.12549]
[1736278068846,0.12549,205.13,205.04,0.12549]
[1736278070249,0.12549,205.13,205.06,0.12549]
[1736278071360,0.12549,205.13,205.06,23.902374]
[1736278071555,1.6317,205.15,205.06,38.20148774]
[1736278071873,0.12549,205.14,205.06,0.12549]
[1736278072171,0.12549,205.14,205.05,0.12549]
[1736278074172,0.12549,205.14,205.07,0.12549]
[1736278074677,0.12549,205.14,205.05,0.12549]
[1736278075168,0.12549,205.14,205.04,38.07599774]
[1736278075375,0.12549,205.14,205.04,23.776884]
[1736278075854,0.12549,205.12,205.03,2.4]
[1736278076060,0.12549,205.12,205.01,2.4]
[1736278076375,0.12549,205.12,205.02,23.902374]
[1736278077059,0.12549,205.12,205.03,23.776884]
[1736278077649,0.12549,205.12,205.04,0.12549]
[1736278082074,0.12549,205.12,205.02,2.4]
[1736278082876,0.12549,205.12,205.03,0.12549]
[1736278083078,0.12549,205.12,205.03,23.902374]
[1736278084380,20.12549,205.12,204.94,14.29911374]
[1736278084587,20.12549,205.12,204.93,1.621]
[1736278084588,0.12549,205.1,204.97,20.0]
[1736278084752,0.12549,205.05,204.93,15.92011374]
[1736278084954,0.85670328,205.05,204.94,2.4]
[1736278085164,0.85670328,205.05,204.95,23.902374]
[1736278086195,0.85670328,205.05,204.95,0.12549]
[1736278087492,0.85670328,205.05,204.95,23.902374]
[1736278087818,0.85670328,205.05,204.95,38.20148774]
[1736278088580,0.85670328,205.05,204.95,23.902374]
[1736278089406,0.85670328,205.05,204.95,23.776884]
[1736278089895,0.85670328,205.05,204.93,23.902374]
[1736278090392,0.85670328,205.05,204.93,38.20148774]
[1736278090571,0.85670328,205.05,204.95,38.07599774]
[1736278090572,0.12549,205.05,204.95,38.07599774]
[1736278090768,0.12549,205.05,204.97,0.12549]
[1736278091188,0.12549,205.05,204.96,23.776884]
[1736278091189,0.12549,205.05,204.95,23.776884]
[1736278092205,0.12549,205.05,204.97,0.12549]
[1736278092813,0.12549,205.05,204.98,38.07599774]
[1736278093098,0.12549,205.05,205.01,0.12549]
[1736278093290,6.0591,205.09,205.01,38.20148774]
[1736278093488,6.0591,205.09,205.01,23.902374]
[1736278093800,6.0591,205.09,205.0,38.20148774]
[1736278093801,0.12549,205.08,205.0,38.20148774]
[1736278095620,0.12549,205.08,205.02,0.12549]
[1736278095978,1.6406,205.11,205.05,38.20148774]
[1736278096307,34.76572529,205.13,205.05,38.20148774]
[1736278096478,13.88188481,205.14,205.07,14.42460374]
[1736278096479,0.12549,205.12,205.07,14.42460374]
[1736278096683,0.12549,205.12,205.07,23.902374]
[1736278097084,0.12549,205.13,205.07,23.902374]
[1736278097981,0.12549,205.13,205.04,14.29911374]
[1736278098180,0.12549,205.13,205.03,14.29911374]
[1736278098396,0.12549,205.13,205.04,0.12549]
[1736278099829,0.12549,205.13,205.05,14.29911374]
[1736278100322,0.12549,205.13,205.06,0.12549]
[1736278100523,0.12549,205.13,205.06,14.42460374]
[1736278100733,0.12549,205.13,205.06,0.12549]
[1736278101419,0.12549,205.13,205.04,23.776884]
[1736278101626,0.12549,205.11,205.01,2.4]
[1736278101804,0.12549,205.11,205.03,23.776884]
[1736278102215,7.03171328,205.14,205.06,0.12549]
[1736278102840,0.12549,205.13,205.06,0.12549]
[1736278103002,0.12549,205.13,205.07,23.902374]
[1736278103512,0.12549,205.15,205.07,23.902374]
[1736278104912,0.85670328,205.15,205.05,23.776884]
[1736278105111,0.12549,205.15,205.05,14.29911374]
[1736278105428,7.76106964,205.15,205.05,14.29911374]
[1736278106033,0.12549,205.15,205.05,14.29911374]